lending/lending_fUSD_20260306
["ID","MTS","AMOUNT","RATE_DAILY","PERIOD"]
[407765872,1772778637240,-5663.95215273,0.00018512,2]
[407765873,1772778637251,-4317.1168178,0.00018512,2]
[407765874,1772778637260,-9000.0,0.00018538,2]
[407765875,1772778637270,-927.27566595,0.00018538,2]
[407765876,1772778637279,-152.0,0.00018557,16]
[407765877,1772778637288,-500.0,0.00018565,2]
[407765878,1772778637298,-151.0,0.00018565,2]
[407765879,1772778637307,-961.58486559,0.00018593,2]
[407765880,1772778637316,-1230.59439442,0.00018612,2]
[407765881,1772778637325,-3000.0,0.00018612,2]
[407765882,1772778637334,-3000.0,0.00018612,2]
[407765883,1772778637343,-3000.0,0.00018612,2]
[407765884,1772778637352,-3000.0,0.00018612,2]
[407765885,1772778637361,-3000.0,0.00018612,2]
[407765886,1772778637370,-3000.0,0.00018612,2]
[407765887,1772778637379,-1000.0,0.00018621,2]
[407765888,1772778637389,-356.75177425,0.00018621,2]
[407765889,1772778637398,-1000.0,0.00018621,2]
[407765890,1772778637407,-1000.0,0.00018621,2]
[407765891,1772778637416,-1000.0,0.00018621,2]
[407765892,1772778637426,-1000.0,0.00018621,2]
[407765893,1772778637435,-604.26284675,0.00018621,2]
[407765894,1772778637444,-1000.0,0.00018621,2]
[407765895,1772778637453,-907.30841405,0.00018621,2]
[407765896,1772778637462,-1000.0,0.00018621,2]
[407765897,1772778637472,-1000.0,0.00018621,2]
[407765898,1772778637482,-1000.0,0.00018621,2]
[407765899,1772778637492,-1000.0,0.00018621,2]
[407765900,1772778637501,-1000.0,0.00018621,2]
[407765901,1772778637510,-1000.0,0.00018621,2]
[407765902,1772778637520,-1000.0,0.00018621,2]
[407765903,1772778637529,-1000.0,0.00018621,2]
[407765904,1772778637538,-1000.0,0.00018621,2]
[407765905,1772778637547,-1000.0,0.00018621,2]
[407765906,1772778637556,-1000.0,0.00018621,2]
[407765907,1772778637566,-1000.0,0.00018621,2]
[407765908,1772778637575,-1000.0,0.00018621,2]
[407765909,1772778637584,-1000.0,0.00018646,2]
[407765910,1772778637594,-181.08010149,0.00018646,2]
[407765911,1772778637603,-272.62944185,0.00018646,2]
[407765912,1772778637612,-327.37485227,0.00018646,2]
[407765913,1772778637621,-859.51608037,0.00018646,2]
[407765914,1772778637631,-342.46809728,0.00018646,2]
[407765915,1772778637640,-997.16350561,0.00018648,2]
[407765916,1772778637650,-232.44,0.00018656,2]
[407765917,1772778637660,-1500.0,0.00018668,2]
[407765918,1772778637669,-1500.0,0.00018668,2]
[407765919,1772778637679,-165.75564834,0.00018673,2]
[407765920,1772778637688,-1002.42005325,0.00018677,2]
[407765921,1772778637697,-237.39,0.0001868,2]
[407765922,1772778637706,-1000.0,0.00018708,2]
[407765923,1772778637715,-1000.0,0.00018708,2]
[407765924,1772778637724,-1000.0,0.00018708,2]
[407765925,1772778637733,-1000.0,0.00018708,2]
[407765926,1772778637743,-160.0,0.0001872,2]
[407765927,1772778637752,-152.0,0.00018727,17]
[407765928,1772778637761,-489.88,0.00018732,2]
[407765929,1772778637771,-489.87,0.00018732,2]
[407765930,1772778637780,-3800.94,0.00018767,2]
[407765931,1772778637789,-1000.0,0.00018798,2]
[407765932,1772778637799,-1225.8,0.00018812,2]
[407765933,1772778637808,-174.0,0.00018868,3]
[407765934,1772778637821,-152.0,0.00018897,18]
[407765935,1772778637830,-455.80528301,0.00018904,2]
[407765936,1772778637840,-153.26719895,0.00018913,2]
[407765937,1772778637851,-160.0,0.00018918,2]
[407765938,1772778637860,-172.74325605,0.00018918,2]
[407765939,1772778637869,-1225.8,0.0001892,2]
[407765940,1772778637879,-3240.0,0.00018926,2]
[407765941,1772778637890,-1000.0,0.00018939,2]
[407765943,1772778637899,-720.61669948,0.00018939,2]
[407765944,1772778637908,-237.39,0.0001895,2]
[407765946,1772778637918,-5663.95215273,0.00018975,2]
[407765947,1772778637927,-4317.1168178,0.00018975,2]
[407765948,1772778637936,-489.87,0.00018984,2]
[407765949,1772778637945,-14218.10285156,0.00019,2]
[407765950,1772778637954,-184.4003812,0.00019,2]
[407765951,1772778637964,-2351.0,0.00019009,2]
[407765952,1772778637973,-1225.8,0.00019028,2]
[407765953,1772778637984,-2803.0,0.0001904,2]
[407765954,1772778637993,-847.0,0.0001904,2]
[407765955,1772778638003,-50000.0,0.0001904,2]
[407765956,1772778638012,-2000.0,0.00019044,2]
[407765957,1772778638022,-2000.0,0.00019044,2]
[407765958,1772778638034,-2000.0,0.00019044,2]
[407765959,1772778638043,-152.0,0.00019067,19]
[407765960,1772778638053,-500.0,0.00019088,2]
[407765961,1772778638063,-489.88,0.0001911,2]
[407765962,1772778638073,-1225.8,0.00019136,2]
[407765964,1772778638082,-1129.43648519,0.0001916,2]
[407765965,1772778638091,-3500.0,0.0001916,2]
[407765967,1772778638101,-3500.0,0.0001916,2]
[407765968,1772778638111,-779.08394022,0.0001916,2]
[407765969,1772778638120,-3500.0,0.0001916,2]
[407765970,1772778638129,-3500.0,0.0001916,2]
[407765971,1772778638139,-337.95925916,0.00019168,2]
[407765972,1772778638148,-1042.17553834,0.00019168,2]
[407765973,1772778638157,-1500.0,0.00019168,2]
[407765974,1772778638167,-1500.0,0.00019168,2]
[407765975,1772778638176,-1500.0,0.00019168,2]
[407765976,1772778638186,-1500.0,0.00019168,2]
[407765977,1772778638195,-1500.0,0.00019168,2]
[407765978,1772778638205,-407.66871599,0.00019168,2]
[407765979,1772778638214,-159.03803007,0.00019168,2]
[407765980,1772778638223,-1500.0,0.00019168,2]
[407765981,1772778638232,-1500.0,0.00019168,2]
[407765982,1772778638242,-1500.0,0.00019168,2]
[407765983,1772778638251,-1500.0,0.00019168,2]
[407765984,1772778638260,-1500.0,0.00019168,2]
[407765985,1772778638269,-1500.0,0.00019168,2]
[407765986,1772778638278,-1500.0,0.00019168,2]
[407765987,1772778638288,-1500.0,0.00019168,2]
[407765988,1772778638297,-1500.0,0.00019168,2]
[407765989,1772778638306,-1500.0,0.00019168,2]
[407765990,1772778638315,-3000.0,0.00019178,7]
[407765991,1772778638325,-150.0,0.00019178,2]
[407765992,1772778638334,-1000.0,0.00019194,2]
[407765993,1772778638344,-187.78006525,0.00019194,2]
[407765994,1772778638353,-282.71673119,0.00019194,2]
[407765995,1772778638362,-175.77535362,0.00019206,2]
[407765996,1772778638372,-591.51541936,0.00019216,2]
[407765999,1772778639290,-1408.48458064,0.00019216,2]
[407766000,1772778639300,-91.51541936,0.00019216,2]
[407766001,1772778639311,-119.39962004,0.00019216,2]
[407766002,1772778639320,-237.39,0.0001922,2]
[407766003,1772778639329,-332.74716933,0.00019229,2]
[407766004,1772778639904,-864.0,0.00016612,2]
[407766005,1772778639914,-869.82262405,0.00017056,2]
[407766006,1772778639924,-17.25283067,0.00019229,2]
[407766007,1772778639933,-150.0,0.00019233,2]
[407766008,1772778639943,-489.87,0.00019237,2]
[407766009,1772778639953,-152.0,0.00019237,20]
[407766011,1772778639962,-1225.8,0.00019244,2]
[407766012,1772778639973,-1500.0,0.00019256,2]
[407766013,1772778639983,-1223.16395414,0.00019256,2]
[407766014,1772778639993,-1500.0,0.00019256,2]
[407766015,1772778640002,-1500.0,0.00019256,2]
[407766016,1772778640013,-271.19,0.00019257,2]
[407766017,1772778640023,-200.0,0.00019258,2]
[407766018,1772778640032,-1000.0,0.00019294,2]
[407766019,1772778640043,-232.44,0.00019314,2]
[407766020,1772778640053,-1473.0,0.00019322,2]
[407766021,1772778640064,-1500.0,0.00019346,2]
[407766022,1772778640074,-1225.8,0.00019352,2]
[407766023,1772778640084,-2803.0,0.0001936,2]
[407766024,1772778640094,-152.0,0.00019407,21]
[407766025,1772778640108,-5663.95215273,0.00019437,2]
[407766026,1772778640118,-4317.1168178,0.00019437,2]
[407766027,1772778640128,-241.0,0.00019448,2]
[407766028,1772778640137,-500.0,0.00019452,7]
[407766029,1772778640147,-600.0,0.00019452,7]
[407766030,1772778640157,-1225.8,0.0001946,2]
[407766031,1772778640166,-1500.0,0.00019487,2]
[407766032,1772778640176,-489.89483843,0.00019489,2]
[407766033,1772778640186,-489.87,0.00019489,2]
[407766034,1772778640195,-237.39,0.0001949,2]
[407766035,1772778640206,-727.0,0.00019513,2]
[407766036,1772778640216,-150.0,0.00019513,2]
[407766037,1772778640225,-277.0,0.00019513,2]
[407766038,1772778640235,-200.0,0.0001952,2]
[407766039,1772778640244,-200.0,0.00019529,2]
[407766040,1772778640254,-200.0,0.00019529,2]
[407766041,1772778640265,-587.0,0.0001954,2]
[407766042,1772778640274,-150.0,0.0001954,2]
[407766043,1772778640284,-150.0,0.0001954,2]
[407766044,1772778640293,-150.0,0.0001954,2]
[407766045,1772778640303,-193.0,0.0001954,2]
[407766046,1772778640313,-150.0,0.00019564,2]
[407766047,1772778640322,-1225.8,0.00019568,2]
[407766048,1772778640332,-1000.0,0.00019568,2]
[407766049,1772778640342,-152.0,0.00019577,22]
[407766050,1772778640351,-2500.0,0.00019592,2]
[407766051,1772778640361,-2500.0,0.00019592,2]
[407766052,1772778640371,-178.8948665,0.00019592,2]
[407766053,1772778640380,-1104.30125256,0.000196,2]
[407766054,1772778640390,-998.30322297,0.000196,2]
[407766055,1772778640403,-142.33825079,0.000196,2]
[407766056,1772778640412,-1056.8746128,0.000196,2]
[407766057,1772778640422,-1009.4153261,0.000196,2]
[407766058,1772778640432,-1108.6634786,0.000196,2]
[407766059,1772778640442,-1073.89218896,0.000196,2]
[407766060,1772778640452,-1132.47670522,0.000196,2]
[407766061,1772778640462,-1121.99759735,0.000196,2]
[407766062,1772778640472,-1113.80124411,0.000196,2]
[407766063,1772778640482,-1068.66167549,0.000196,2]
[407766064,1772778640491,-1078.24542839,0.000196,2]
[407766065,1772778640501,-1130.73667144,0.000196,2]
[407766066,1772778640511,-1089.90022244,0.000196,2]
[407766067,1772778640520,-1050.77332091,0.000196,2]
[407766068,1772778640530,-1930.55344109,0.000196,2]
[407766069,1772778640540,-1127.95199935,0.000196,2]
[407766070,1772778640550,-250.0,0.00019623,2]
[407766071,1772778640559,-500.0,0.00019661,2]
[407766072,1772778640569,-1225.8,0.00019676,2]
[407766073,1772778640579,-160.0,0.0001968,2]
[407766074,1772778640588,-847.0,0.0001968,2]
[407766075,1772778640598,-160.0,0.0001968,2]
[407766076,1772778640608,-847.0,0.0001968,2]
[407766077,1772778640617,-847.0,0.0001968,2]
[407766078,1772778640627,-153.26719895,0.00019701,2]
[407766079,1772778640636,-1134.47331644,0.00019708,2]
[407766080,1772778640646,-2161.21660943,0.00019708,2]
[407766081,1772778640660,-4000.0,0.00019708,2]
[407766082,1772778640670,-4000.0,0.00019708,2]
[407766083,1772778640680,-453.63,0.00019711,2]
[407766084,1772778640690,-1034.85556494,0.00019716,2]
[407766085,1772778640700,-1620.91529332,0.00019716,2]
[407766086,1772778640710,-2000.0,0.00019716,2]
[407766087,1772778640720,-2000.0,0.00019716,2]
[407766088,1772778640730,-1418.00172438,0.00019716,2]
[407766089,1772778640740,-2000.0,0.00019716,2]
[407766090,1772778640750,-1824.65550573,0.00019716,2]
[407766091,1772778640760,-2000.0,0.00019716,2]
[407766092,1772778640770,-2000.0,0.00019716,2]
[407766093,1772778640779,-1751.18042368,0.00019716,2]
[407766094,1772778640789,-668.33306384,0.00019716,2]
[407766095,1772778640799,-2000.0,0.00019716,2]
[407766096,1772778640816,-1879.21598663,0.00019716,2]
[407766097,1772778640826,-2000.0,0.00019716,2]
[407766098,1772778640836,-2000.0,0.00019716,2]
[407766099,1772778640846,-250.0,0.00019726,2]
[407766100,1772778640857,-474.80483861,0.00019739,2]
[407766101,1772778640867,-1000.0,0.00019742,2]
[407766102,1772778640877,-194.72792766,0.00019742,2]
[407766103,1772778640887,-293.17725025,0.00019742,2]
[407766104,1772778640897,-152.0,0.00019747,23]
[407766105,1772778640907,-237.39,0.0001976,2]
[407766106,1772778640917,-2500.0,0.00019764,2]
[407766107,1772778640926,-250.0,0.00019781,2]
[407766108,1772778640939,-1225.8,0.00019784,2]
[407766109,1772778640949,-1406.44011951,0.00019804,2]
[407766110,1772778640959,-2000.0,0.00019804,2]
[407766111,1772778640969,-1668.38028068,0.00019804,2]
[407766112,1772778640979,-6828.85633504,0.0001981,2]
[407766113,1772778640989,-500.0,0.0001984,2]
[407766114,1772778640999,-1000.0,0.00019842,2]
[407766115,1772778641009,-4732.9702,0.00019861,2]
[407766116,1772778641020,-1225.8,0.00019892,2]
[407766117,1772778641030,-2000.0,0.00019894,2]
[407766118,1772778641040,-500.0,0.000199,2]
[407766119,1772778641050,-500.0,0.000199,2]
[407766120,1772778641064,-500.0,0.000199,2]
[407766121,1772778641074,-500.0,0.000199,2]
[407766122,1772778641084,-500.0,0.000199,2]
[407766123,1772778641095,-500.0,0.000199,2]
[407766124,1772778641105,-500.0,0.000199,2]
[407766125,1772778641117,-500.0,0.000199,2]
[407766126,1772778641127,-500.0,0.000199,2]
[407766127,1772778641138,-500.0,0.000199,2]
[407766128,1772778641147,-500.0,0.000199,2]
[407766129,1772778641157,-500.0,0.000199,2]
[407766130,1772778641167,-500.0,0.000199,2]
[407766131,1772778641177,-500.0,0.000199,2]
[407766132,1772778641187,-500.0,0.000199,2]
[407766133,1772778641199,-500.0,0.000199,2]
[407766134,1772778641209,-500.0,0.000199,2]
[407766135,1772778641219,-500.0,0.000199,2]
[407766136,1772778641229,-500.0,0.000199,2]
[407766137,1772778641239,-500.0,0.000199,2]
[407766138,1772778641248,-500.0,0.000199,2]
[407766139,1772778641258,-500.0,0.000199,2]
[407766140,1772778641268,-500.0,0.000199,2]
[407766141,1772778641278,-500.0,0.000199,2]
[407766142,1772778641288,-500.0,0.000199,2]
[407766143,1772778641298,-500.0,0.000199,2]
[407766144,1772778641308,-500.0,0.000199,2]
[407766145,1772778641318,-500.0,0.000199,2]
[407766146,1772778641328,-500.0,0.000199,2]
[407766147,1772778641338,-500.0,0.000199,2]
[407766148,1772778641348,-500.0,0.000199,2]
[407766149,1772778641358,-500.0,0.000199,2]
[407766150,1772778641368,-500.0,0.000199,2]
[407766151,1772778641378,-500.0,0.000199,2]
[407766152,1772778641388,-500.0,0.000199,2]
[407766153,1772778641398,-500.0,0.000199,2]
[407766154,1772778641408,-500.0,0.000199,2]
[407766155,1772778641418,-191.36410237,0.000199,2]
[407766156,1772778641428,-175.77535362,0.000199,2]
[407766157,1772778641441,-5663.95215273,0.000199,2]
[407766158,1772778641451,-4317.1168178,0.000199,2]
[407766159,1772778641461,-6936.0,0.000199,2]
[407766160,1772778641471,-5549.0,0.000199,2]
[407766161,1772778641482,-152.0,0.00019917,24]
[407766162,1772778641493,-400.0,0.0001997,2]
[407766163,1772778641503,-701.879034,0.0001997,2]
[407766164,1772778641515,-500.28271558,0.00019973,2]
[407766165,1772778641526,-500.0,0.00019973,2]
[407766166,1772778641536,-500.0,0.00019973,2]
[407766167,1772778641546,-500.0,0.00019973,2]
[407766168,1772778641556,-500.0,0.00019973,2]
[407766169,1772778641567,-500.60446081,0.00019973,2]
[407766170,1772778641576,-500.0,0.00019973,2]
[407766171,1772778641586,-500.0,0.00019973,2]
[407766172,1772778641597,-500.0,0.00019973,2]
[407766173,1772778641606,-500.0,0.00019973,2]
[407766174,1772778641616,-500.0,0.00019973,2]
[407766175,1772778641626,-500.0,0.00019973,2]
[407766176,1772778641635,-269.6512537,0.00019973,2]
[407766177,1772778641645,-387.06476541,0.00019973,2]
[407766178,1772778641655,-503.16169822,0.0001998,2]
[407766179,1772778641664,-183.17168584,0.0001999,2]
[407766180,1772778641674,-151.0,0.00019997,2]
[407766181,1772778641683,-300.0,0.00019999,2]
[407766182,1772778641693,-300.0,0.00019999,2]
[407766183,1772778641702,-155.0,0.00019999,2]
[407766184,1772778641712,-1048.80405626,0.00019999,5]
[407766185,1772778641722,-264.33186095,0.00019999,2]
[407766186,1772778641731,-1660385.73419008,0.0002,2]
[407766187,1772778641756,-2638.15312271,0.0002,2]
[407766188,1772778641768,-1132.68254729,0.0002,2]
[407766189,1772778641780,-45230.42158635,0.0002,2]
[407766190,1772778641789,-132637.64876581,0.0002,2]
[407766191,1772778641799,-197.91,0.0002,120]
[407766192,1772778641810,-12979.23134695,0.0002,2]
[407766193,1772778641823,-150.0,0.0002,2]
[407766194,1772778641836,-706.42643953,0.0002,2]
[407766195,1772778641847,-150.0,0.0002,2]
[407766196,1772778641859,-1565.90123891,0.0002,2]
[407766197,1772778641877,-2001.1457,0.0002,2]
[407766198,1772778641888,-4786.8317,0.0002,2]
[407766199,1772778641899,-150.0,0.0002,2]
[407766200,1772778641909,-10441.37485007,0.0002,2]
[407766201,1772778641922,-150.0,0.0002,2]
[407766202,1772778641932,-270.0,0.0002,2]
[407766203,1772778641941,-200.0,0.0002,2]
[407766204,1772778641951,-200.0,0.0002,2]
[407766205,1772778641961,-302.3,0.0002,2]
[407766206,1772778641971,-150.166,0.0002,2]
[407766207,1772778641981,-150.0,0.0002,2]
[407766208,1772778641991,-150.188,0.0002,2]
[407766209,1772778642000,-150.109,0.0002,2]
[407766210,1772778642010,-150.0,0.0002,2]
[407766211,1772778642023,-150.0,0.0002,2]
[407766212,1772778642032,-150.0,0.0002,2]
[407766213,1772778642042,-150.149,0.0002,2]
[407766214,1772778642054,-150.0,0.0002,2]
[407766215,1772778642064,-4690271.02504541,0.0002,2]
[407766216,1772778642082,-11579.7284379,0.0002,2]
[407766217,1772778642143,-793.42249656,0.0002,2]
[407766218,1772778642751,-301.92197159,0.00016612,2]
[407766219,1772778642779,-562.07802841,0.00016612,2]
[407766220,1772778642790,-1029.7754151,0.0001881,2]
[407766221,1772778642800,-1114.76509509,0.0001881,2]
[407766222,1772778642810,-1042.0,0.00019778,2]
[407766223,1772778642825,-589.89471263,0.0002,2]
[407766224,1772778642842,-16423.77630713,0.0002,2]
[407766227,1772778646309,-356.6800002,0.00015736,2]
[407766230,1772778660673,517.0,0.00014,2]
[407766231,1772778698675,2640.19,0.00012414,2]
[407766232,1772778726558,1477.52,7.577e-05,2]
[407766233,1772778726605,1477.52,7.975e-05,2]
[407766234,1772778726650,1477.52,8.374e-05,2]
[407766235,1772778726688,1477.52,8.773e-05,2]
[407766236,1772778726898,1449.74,9.172e-05,2]
[407766237,1772778726923,27.78,9.172e-05,2]
[407766238,1772778727085,1477.52,9.571e-05,2]
[407766239,1772778727308,1477.52,9.969e-05,2]
[407766240,1772778727540,1477.52,0.00010368,2]
[407766241,1772778727729,1477.52,0.00010767,2]
[407766242,1772778727922,1477.52,0.00011166,2]
[407766243,1772778728114,1477.52,0.00011564,2]
[407766244,1772778728308,1107.11,0.00011963,2]
[407766245,1772778728331,370.41,0.00011963,2]
[407766246,1772778728707,1477.52,0.00012362,2]
[407766247,1772778728917,1477.52,0.00012761,2]
[407766248,1772778729662,1477.52,0.00013159,2]
[407766249,1772778729718,1477.52,0.00013558,2]
[407766250,1772778729817,1477.52,0.00013957,2]
[407766251,1772778730021,1477.52,0.00014356,2]
[407766252,1772778730219,764.48,0.00014755,2]
[407766253,1772778730242,713.04,0.00014755,2]
[407766254,1772778730430,1477.52,0.00015153,2]
[407766255,1772778730467,250.0,0.00015,2]
[407766256,1772778736374,500.0,0.00012,2]
[407766257,1772778736409,655.28,0.00012,2]
[407766258,1772778737331,417.59742261,0.00012,2]
[407766259,1772778737393,226.32936989,0.00012,2]
[407766260,1772778737453,500.0,0.00010736,2]
[407766261,1772778737489,671.78014092,0.00012,2]
[407766262,1772778737946,459.02007862,0.00012,2]
[407766263,1772778742144,197.58575887,0.00012,2]
[407766264,1772778763598,500.0,0.00015636,2]
[407766265,1772778871769,1000.0,0.00015153,2]
[407766266,1772778901341,163.67,0.00012123,2]
[407766267,1772778901374,163.67,0.00014143,2]
[407766268,1772778954476,1500.0,0.00015153,2]
[407766270,1772779013339,517.0,0.00014,2]
[407766272,1772779330796,87.51722909,0.00015736,2]
[407766273,1772779330820,412.48277091,0.00015736,2]
[407766274,1772779331387,500.0,0.00015736,2]
[407766275,1772779332016,500.0,0.00015736,2]
[407766276,1772779332624,500.0,0.00015736,2]
[407766277,1772779333253,500.0,0.00015736,2]
[407766278,1772779333864,500.0,0.00015736,2]
[407766279,1772779334083,-643.3199998,0.00015736,2]
[407766280,1772779334112,-458.619765,0.0001578,7]
[407766281,1772779336075,151.0,0.00015736,2]
[407766282,1772779336737,151.0,0.00015736,2]
[407766283,1772779337334,151.0,0.00015736,2]
[407766284,1772779337948,151.0,0.00015736,2]
[407766285,1772779338588,151.0,0.00015736,2]
[407766286,1772779340627,151.0,0.00015736,2]
[407766287,1772779340727,151.0,0.00015736,2]
[407766288,1772779340764,500.0,0.00015736,2]
[407766289,1772779340964,151.0,0.00015736,2]
[407766290,1772779341187,500.0,0.00015736,2]
[407766291,1772779347064,500.0,0.00015736,2]
[407766292,1772779348665,151.0,0.00015736,2]
[407766293,1772779348833,500.0,0.00015736,2]
[407766294,1772779351672,151.0,0.00015736,2]
[407766295,1772779351888,151.0,0.00015736,2]
[407766296,1772779376776,517.0,0.00014,2]
[407766297,1772779378882,9181.01,0.0001589,2]
[407766298,1772779378905,10000.01,0.0001589,2]
[407766299,1772779378927,10000.01,0.0001589,2]
[407766300,1772779378949,10000.01,0.0001589,2]
[407766301,1772779378970,10000.01,0.0001589,2]
[407766302,1772779378992,10000.01,0.0001589,2]
[407766303,1772779379016,5265.9107,0.0001589,2]
[407766304,1772779379630,182.80013699,0.00013225,2]
[407766305,1772779589575,1958.38,0.00015725,2]
[407766306,1772779603127,-931.12990734,0.0001589,2]
[407766307,1772779627062,1600.0,0.00015681,2]
[407766308,1772779631056,151.0,0.0001589,2]
[407766309,1772779631677,151.0,0.0001589,2]
[407766310,1772779632335,151.0,0.0001589,2]
[407766311,1772779632941,151.0,0.0001589,2]
[407766312,1772779633581,151.0,0.0001589,2]
[407766313,1772779634235,164.46815031,0.0001589,2]
[407766314,1772779729751,4005.0,0.00017,120]
[407766315,1772779733016,73.4510127,0.00014,2]
[407766316,1772779733041,445.3385873,0.00014,2]
[407766317,1772779751110,-1068.87009266,0.0001589,2]
[407766318,1772779751139,-1505.42869734,0.00016018,2]
[407766319,1772779753610,-3738.54130266,0.00016018,2]
[407766320,1772779759101,-200.0,0.00016074,2]
[407766321,1772779759127,-200.0,0.0001614,2]
[407766322,1772779759149,-163.67,0.00016164,2]
[407766323,1772779759171,-1200.0,0.00016398,2]
[407766324,1772779759194,-300.0,0.00016399,2]
[407766325,1772779759216,-264.08951467,0.000164,2]
[407766326,1772779759238,-485.29054609,0.000164,2]
[407766327,1772779759260,-448.07982397,0.000164,2]
[407766328,1772779759282,-131.37150037,0.000164,2]
[407766329,1772779795610,171.84,0.00015944,2]
[407766340,1772779832505,-363.97912156,0.000164,2]
[407766341,1772779832517,-155.21581993,0.000164,2]
[407766342,1772779832528,-163.78303168,0.000164,2]
[407766343,1772779832538,-300.0,0.00016411,2]
[407766344,1772779832548,-1200.0,0.00016411,2]
[407766345,1772779832557,-488.87282653,0.00016412,2]
[407766346,1772779832574,-97.57353542,0.00016412,2]
[407766347,1772779832584,-267.15019666,0.00016412,2]
[407766348,1772779832611,-493.0254014,0.00016412,2]
[407766349,1772779832620,-761.094796,0.00016412,2]
[407766350,1772779832630,-10000.01,0.00016412,2]
[407766351,1772779832639,-1000.0,0.00016412,2]
[407766352,1772779832648,-550.0,0.00016436,2]
[407766354,1772779832658,-150.99,0.00016437,2]
[407766356,1772779832667,-5610.8,0.00016437,2]
[407766358,1772779832676,-12068.55,0.00016438,7]
[407766360,1772779832685,-151.0,0.00016509,2]
[407766362,1772779832695,-200.0,0.00016509,2]
[407766364,1772779832705,-1958.38,0.00016511,2]
[407766366,1772779832714,-1440.553,0.00016511,2]
[407766368,1772779832723,-429.81528099,0.00016511,2]
[407766370,1772779832733,-205.985,0.00016511,2]
[407766372,1772779832742,-523.21251618,0.00016511,2]
[407766374,1772779832751,-500.0,0.00016511,2]
[407766376,1772779832761,-500.0,0.00016511,2]
[407766378,1772779832770,-515.92947031,0.00016511,2]
[407766380,1772779832780,-500.0,0.00016511,2]
[407766382,1772779832789,-500.0,0.00016511,2]
[407766384,1772779832798,-500.0,0.00016511,2]
[407766386,1772779832807,-500.0,0.00016511,2]
[407766388,1772779832817,-500.0,0.00016511,2]
[407766390,1772779832826,-500.0,0.00016511,2]
[407766392,1772779832835,-500.0,0.00016511,2]
[407766394,1772779832845,-500.0,0.00016511,2]
[407766396,1772779832854,-500.0,0.00016511,2]
[407766398,1772779832863,-222426.53363553,0.00016512,2]
[407766403,1772779838428,-204952.1958344,0.00016512,2]
[407766404,1772779838490,-606.81999954,0.00016512,2]
[407766405,1772779838505,-1412.62,0.00016512,2]
[407766406,1772779838519,-2070601.83053053,0.00016512,2]
[407766407,1772779838528,-36610.771,0.00016512,2]
[407766408,1772779838539,-500.0,0.00016573,2]
[407766409,1772779838548,-166.66,0.00016595,2]
[407766410,1772779838558,-738.2018938,0.00016611,2]
[407766411,1772779838568,-285.0,0.00016616,2]
[407766412,1772779838577,-941.0,0.00016616,2]
[407766413,1772779838587,-864.0,0.00016649,2]
[407766414,1772779838597,-864.0,0.00016649,2]
[407766415,1772779838610,-864.0,0.00016649,2]
[407766417,1772779838619,-864.0,0.00016649,2]
[407766419,1772779838629,-864.0,0.00016649,2]
[407766421,1772779838640,-864.0,0.00016649,2]
[407766423,1772779838649,-864.0,0.00016649,2]
[407766425,1772779838658,-864.0,0.00016649,2]
[407766427,1772779838667,-864.0,0.00016649,2]